[Event "Gibraltar Masters 18th"]
[Site "Gibraltar"]
[Date "2020.01.27"]
[Round "7.55"]
[White "Gschnitzer, Oswald"]
[Black "Di Berardino, Diego Rafael"]
[Result "0-1"]
[ECO "A34"]
[WhiteElo "2361"]
[BlackElo "2478"]
[PlyCount "150"]
[EventDate "2020.01.21"]
[EventType "swiss"]
[EventRounds "10"]
[EventCountry "GGB"]
[SourceTitle "BritBase"]
[Source "John Saunders"]
[SourceDate "2021.06.05"]
[SourceVersion "1"]
[SourceVersionDate "2021.06.05"]
[SourceQuality "1"]
[TimeControl "40/100:0"]
[WhiteClock "0:04:08"]
[BlackClock "0:02:44"]

1. Nf3 {[%emt 0:00:00]} c5 {[%emt 0:00:00]} 2. c4 {[%emt 0:00:00]} Nf6 {
[%emt 0:00:00]} 3. Nc3 {[%emt 0:00:00]} d5 {[%emt 0:00:00]} 4. cxd5 {[%emt 0:
00:00]} Nxd5 {[%emt 0:00:00]} 5. d4 {[%emt 0:00:00]} Nxc3 {[%emt 0:00:00]} 6.
bxc3 {[%emt 0:00:00]} g6 {[%emt 0:00:00]} 7. Bf4 {[%emt 0:00:00]} Bg7 {[%emt 0:
00:00]} 8. e3 {[%emt 0:00:00]} O-O {[%emt 0:00:00]} 9. Bd3 {[%emt 0:00:00]} Nc6
{[%emt 0:00:00]} 10. O-O {[%emt 0:00:00]} Bg4 {[%emt 0:00:00]} 11. Be4 {
[%emt 0:00:00]} Qd7 {[%emt 0:00:00]} 12. Qb3 {[%emt 0:00:00]} Rac8 {[%emt 0:00:
00]} 13. Rfd1 {[%emt 0:00:00]} cxd4 {[%emt 0:00:00]} 14. cxd4 {[%emt 0:00:00]}
b6 {[%emt 0:00:00]} 15. Rac1 {[%emt 0:00:00]} Bf5 {[%emt 0:00:00]} 16. Bxf5 {
[%emt 0:00:00]} Qxf5 {[%emt 0:00:00]} 17. h3 {[%emt 0:00:00]} Rfd8 {[%emt 0:00:
00]} 18. Bg3 {[%emt 0:00:00]} Bf6 {[%emt 0:00:00]} 19. Qa4 {[%emt 0:00:00]} Qd5
{[%emt 0:00:00]} 20. Qa6 {[%emt 0:00:00]} Qd7 {[%emt 0:00:00]} 21. Qb5 {
[%emt 0:00:00]} e6 {[%emt 0:00:00]} 22. Rc4 {[%emt 0:00:00]} Qd5 {[%emt 0:00:
00]} 23. Qa6 {[%emt 0:00:00]} Qa5 {[%emt 0:00:00]} 24. Qb7 {[%emt 0:00:00]} Ne7
{[%emt 0:00:00]} 25. Rxc8 {[%emt 0:00:00]} Rxc8 {[%emt 0:00:00]} 26. Be5 {
[%emt 0:00:00]} Bxe5 {[%emt 0:00:00]} 27. Nxe5 {[%emt 0:00:00]} Qa3 {[%emt 0:
00:00]} 28. Rd3 {[%emt 0:00:00]} Qc1+ {[%emt 0:00:00]} 29. Kh2 {[%emt 0:00:00]}
Qc7 {[%emt 0:00:00]} 30. Qf3 {[%emt 0:00:00]} Nf5 {[%emt 0:00:00]} 31. g3 {
[%emt 0:00:00]} Kg7 {[%emt 0:00:00]} 32. Qe2 {[%emt 0:00:00]} Qc2 {[%emt 0:00:
00]} 33. Rd2 {[%emt 0:00:00]} Qe4 {[%emt 0:00:00]} 34. Qf3 {[%emt 0:00:00]} Nd6
{[%emt 0:00:00]} 35. Kg2 {[%emt 0:00:00]} Rc1 {[%emt 0:00:00]} 36. Rb2 {
[%emt 0:00:00]} f6 {[%emt 0:00:19]} 37. Qxe4 {[%emt 0:00:00]} Nxe4 {[%emt 0:00:
00]} 38. Nd3 {[%emt 0:00:00]} Rc3 {[%emt 0:00:00]} 39. Ne1 {[%emt 0:00:00]} Ra3
{[%emt 0:00:00]} 40. Nc2 {[%emt 0:00:00]} Rc3 {[%emt 0:00:15]} 41. Ne1 {
[%emt 0:00:00]} Ra3 {[%emt 0:00:00]} 42. Nc2 {[%emt 0:00:00]} Ra4 {[%emt 0:00:
00]} 43. Kf3 {[%emt 0:00:00]} Nc3 {[%emt 0:00:00]} 44. a3 {[%emt 0:00:00]} Rc4
{[%emt 0:00:00]} 45. Nb4 {[%emt 0:00:00]} Kf7 {[%emt 0:00:00]} 46. Nd3 {
[%emt 0:00:00]} Ke7 {[%emt 0:00:00]} 47. Rb4 {[%emt 0:00:00]} Rxb4 {[%emt 0:00:
00]} 48. Nxb4 {[%emt 0:00:00]} a5 {[%emt 0:00:00]} 49. Nc2 {[%emt 0:00:00]} f5
{[%emt 0:00:00]} 50. Kf4 {[%emt 0:00:00]} Kf6 {[%emt 0:00:00]} 51. h4 {[%emt 0:
00:00]} b5 {[%emt 0:00:00]} 52. g4 {[%emt 0:00:00]} Nd5+ {[%emt 0:00:00]} 53.
Kf3 {[%emt 0:00:00]} fxg4+ {[%emt 0:01:02]} 54. Kxg4 {[%emt 0:00:00]} h5+ {
[%emt 0:00:24]} 55. Kg3 {[%emt 0:00:00]} b4 {[%emt 0:00:21]} 56. axb4 {[%emt 0:
00:00]} Nxb4 {[%emt 0:00:00]} 57. Na3 {[%emt 0:00:00]} Nd5 {[%emt 0:00:00]} 58.
e4 {[%emt 0:00:00]} Nb4 {[%emt 0:00:00]} 59. Kf4 {[%emt 0:00:00]} Nd3+ {
[%emt 0:00:00]} 60. Ke3 {[%emt 0:01:07]} Ne1 {[%emt 0:00:00]} 61. Kf4 {[%emt 0:
00:00]} a4 {[%emt 0:00:04]} 62. d5 {[%emt 0:00:00]} exd5 {[%emt 0:00:00]} 63.
exd5 {[%emt 0:00:00]} Nd3+ {[%emt 0:00:00]} 64. Ke3 {[%emt 0:00:00]} Nc5 {
[%emt 0:00:00]} 65. Kf4 {[%emt 0:00:00]} Nd3+ {[%emt 0:00:00]} 66. Ke3 {
[%emt 0:00:00]} Ne5 {[%emt 0:00:00]} 67. Kf4 {[%emt 0:00:00]} Nf7 {[%emt 0:00:
00]} 68. Ke4 {[%emt 0:00:00]} Nd6+ {[%emt 0:00:00]} 69. Kd4 {[%emt 0:00:00]}
Nf5+ {[%emt 0:00:00]} 70. Kc5 {[%emt 0:00:00]} g5 {[%emt 0:00:00]} 71. hxg5+ {
[%emt 0:00:00]} Kxg5 {[%emt 0:00:00]} 72. Nc2 {[%emt 0:00:00]} h4 {[%emt 0:00:
00]} 73. Ne3 {[%emt 0:00:00]} h3 {[%emt 0:00:00]} 74. Nxf5 {[%emt 0:00:00]}
Kxf5 {[%emt 0:00:00]} 75. d6 {[%emt 0:00:00]} Ke6 {[%emt 0:00:00]} 0-1

[Event "Gibraltar Masters 18th"]
[Site "Gibraltar"]
[Date "2020.01.27"]
[Round "7.56"]
[White "Roussel-Roozmon, Thomas"]
[Black "Petrov, Vladimir Sergeev"]
[Result "1/2-1/2"]
[ECO "A34"]
[WhiteElo "2473"]
[BlackElo "2353"]
[PlyCount "93"]
[EventDate "2020.01.21"]
[EventType "swiss"]
[EventRounds "10"]
[EventCountry "GGB"]
[SourceTitle "BritBase"]
[Source "John Saunders"]
[SourceDate "2021.06.05"]
[SourceVersion "1"]
[SourceVersionDate "2021.06.05"]
[SourceQuality "1"]
[TimeControl "40/100:0"]
[WhiteClock "0:29:45"]
[BlackClock "1:12:12"]

1. Nf3 {[%emt 0:00:00]} Nf6 {[%emt 0:00:00]} 2. c4 {[%emt 0:00:00]} c5 {
[%emt 0:00:00]} 3. Nc3 {[%emt 0:00:00]} Nc6 {[%emt 0:00:00]} 4. g3 {[%emt 0:00:
00]} d5 {[%emt 0:00:00]} 5. d4 {[%emt 0:00:00]} cxd4 {[%emt 0:00:00]} 6. Nxd4 {
[%emt 0:00:00]} e5 {[%emt 0:00:00]} 7. Nxc6 {[%emt 0:00:00]} bxc6 {[%emt 0:00:
00]} 8. Bg2 {[%emt 0:00:00]} Rb8 {[%emt 0:00:00]} 9. Bg5 {[%emt 0:00:00]} Be7 {
[%emt 0:00:00]} 10. Bxf6 {[%emt 0:00:00]} Bxf6 {[%emt 0:00:00]} 11. cxd5 {
[%emt 0:00:00]} Rxb2 {[%emt 0:00:00]} 12. O-O {[%emt 0:00:00]} cxd5 {[%emt 0:
00:00]} 13. Qa4+ {[%emt 0:00:00]} Qd7 {[%emt 0:00:00]} 14. Qa3 {[%emt 0:00:00]}
Rd2 {[%emt 0:00:00]} 15. Qc1 {[%emt 0:00:00]} Rd4 {[%emt 0:00:00]} 16. Nxd5 {
[%emt 0:00:00]} O-O {[%emt 0:00:00]} 17. Rd1 {[%emt 0:00:00]} Rxd1+ {[%emt 0:
00:00]} 18. Qxd1 {[%emt 0:00:00]} Bd8 {[%emt 0:00:00]} 19. Qb3 {[%emt 0:00:00]}
Qe6 {[%emt 0:00:00]} 20. Rc1 {[%emt 0:00:00]} e4 {[%emt 0:00:00]} 21. e3 {
[%emt 0:00:00]} Ba6 {[%emt 0:00:00]} 22. Nb4 {[%emt 0:00:00]} Qxb3 {[%emt 0:00:
00]} 23. axb3 {[%emt 0:00:00]} Bb7 {[%emt 0:00:00]} 24. Nc6 {[%emt 0:00:00]}
Bxc6 {[%emt 0:00:00]} 25. Rxc6 {[%emt 0:00:00]} f5 {[%emt 0:00:00]} 26. Bf1 {
[%emt 0:00:00]} g6 {[%emt 0:00:00]} 27. Bc4+ {[%emt 0:00:00]} Kg7 {[%emt 0:00:
00]} 28. Rd6 {[%emt 0:00:00]} Bb6 {[%emt 0:00:00]} 29. Rd7+ {[%emt 0:00:00]}
Kh6 {[%emt 0:00:00]} 30. h4 {[%emt 0:00:00]} Rd8 {[%emt 0:00:00]} 31. Re7 {
[%emt 0:00:00]} Bc5 {[%emt 0:00:00]} 32. Rc7 {[%emt 0:00:00]} Bb6 {[%emt 0:00:
00]} 33. Re7 {[%emt 0:00:00]} Bc5 {[%emt 0:00:00]} 34. Rb7 {[%emt 0:00:00]} Re8
{[%emt 0:00:00]} 35. Rc7 {[%emt 0:00:00]} Bb6 {[%emt 0:00:00]} 36. Rb7 {
[%emt 0:00:00]} Rc8 {[%emt 0:00:00]} 37. Rd7 {[%emt 0:00:00]} Rc7 {[%emt 0:00:
00]} 38. Rd6 {[%emt 0:00:00]} Kg7 {[%emt 0:00:00]} 39. h5 {[%emt 0:00:00]} Bc5
{[%emt 0:00:00]} 40. Re6 {[%emt 0:00:00]} Kh6 {[%emt 0:00:00]} 41. hxg6 {
[%emt 0:00:00]} hxg6 {[%emt 0:00:00]} 42. Kg2 {[%emt 0:00:00]} a5 {[%emt 0:00:
00]} 43. g4 {[%emt 0:00:00]} Kg5 {[%emt 0:00:00]} 44. gxf5 {[%emt 0:00:00]}
gxf5 {[%emt 0:00:00]} 45. Re5 {[%emt 0:00:00]} Bb4 {[%emt 0:00:00]} 46. Rb5 {
[%emt 0:00:00]} Rc5 {[%emt 0:00:00]} 47. Rxc5 {[%emt 0:00:00]} 1/2-1/2

[Event "Gibraltar Masters 18th"]
[Site "Gibraltar"]
[Date "2020.01.27"]
[Round "7.57"]
[White "Stefanova, Antoaneta"]
[Black "Bellon Lopez, Juan Manuel"]
[Result "1-0"]
[ECO "A50"]
[WhiteElo "2469"]
[BlackElo "2348"]
[PlyCount "67"]
[EventDate "2020.01.21"]
[EventType "swiss"]
[EventRounds "10"]
[EventCountry "GGB"]
[SourceTitle "BritBase"]
[Source "John Saunders"]
[SourceDate "2021.06.05"]
[SourceVersion "1"]
[SourceVersionDate "2021.06.05"]
[SourceQuality "1"]
[TimeControl "40/100:0"]

1. d4 {[%emt 3:23:34]} Nf6 {[%emt 0:00:18]} 2. c4 {[%emt 0:00:22]} a6 {[%emt 0:
00:20]} 3. Nc3 {[%emt 0:05:15]} c5 {[%emt 0:00:20]} 4. dxc5 {[%emt 0:02:02]} e5
{[%emt 0:00:24]} 5. Be3 {[%emt 0:05:47]} Ng4 {[%emt 0:10:45]} 6. Qd2 {[%emt 0:
02:20]} Nc6 {[%emt 0:00:55]} 7. Nf3 {[%emt 0:42:23]} f6 {[%emt 0:15:32]} 8. Ne4
{[%emt 0:05:02]} b5 {[%emt 0:12:19]} 9. Rc1 {[%emt 0:12:54]} Bb7 {[%emt 0:12:
37]} 10. Nd6+ {[%emt 0:03:29]} Bxd6 {[%emt 0:00:33]} 11. cxd6 {[%emt 0:00:03]}
Nxe3 {[%emt 0:01:56]} 12. fxe3 {[%emt 0:00:05]} bxc4 {[%emt 0:02:59]} 13. Rxc4
{[%emt 0:00:11]} a5 {[%emt 0:05:36]} 14. g3 {[%emt 0:02:53]} Qb6 {[%emt 0:04:
07]} 15. Bh3 {[%emt 0:01:19]} Nb4 {[%emt 0:03:35]} 16. a3 {[%emt 0:09:38]} Nd5
{[%emt 0:06:46]} 17. e4 {[%emt 0:04:19]} Qb5 {[%emt 0:00:42]} 18. Qd3 {[%emt 0:
01:33]} Ba6 {[%emt 0:02:32]} 19. b3 {[%emt 0:01:58]} Nb6 {[%emt 0:00:51]} 20.
a4 {[%emt 0:01:02]} Nxa4 {[%emt 0:01:09]} 21. Rxa4 {[%emt 0:00:24]} Qb6 {
[%emt 0:03:42]} 22. Qd2 {[%emt 0:01:41]} Bb5 {[%emt 0:03:15]} 23. Ra2 {[%emt 0:
00:41]} O-O {[%emt 0:00:44]} 24. e3 {[%emt 0:00:20]} Bc6 {[%emt 0:00:30]} 25.
Kf2 {[%emt 0:01:08]} Qxb3 {[%emt 0:00:39]} 26. Rc1 {[%emt 0:00:34]} Bxe4 {
[%emt 0:02:47]} 27. Bxd7 {[%emt 0:00:56]} Rad8 {[%emt 0:03:48]} 28. Rb2 {
[%emt 0:00:39]} Qf7 {[%emt 0:04:18]} 29. Bc6 {[%emt 0:00:13]} f5 {[%emt 0:00:
56]} 30. Kg1 {[%emt 0:01:16]} Qf6 {[%emt 0:01:41]} 31. Bxe4 {[%emt 0:00:11]}
fxe4 {[%emt 0:00:05]} 32. Qd5+ {[%emt 0:00:04]} Kh8 {[%emt 0:01:10]} 33. Nxe5 {
[%emt 0:00:20]} Rxd6 {[%emt 0:03:51]} 34. Nf7+ {[%emt 0:00:24]} 1-0

[Event "Gibraltar Masters 18th"]
[Site "Gibraltar"]
[Date "2020.01.28"]
[Round "8.1"]
[White "Maghsoodloo, Parham"]
[Black "Wang, Hao"]
[Result "1/2-1/2"]
[ECO "E06"]
[WhiteElo "2674"]
[BlackElo "2758"]
[PlyCount "40"]
[EventDate "2020.01.21"]
[EventType "swiss"]
[EventRounds "10"]
[EventCountry "GGB"]
[SourceTitle "BritBase"]
[Source "John Saunders"]
[SourceDate "2021.06.05"]
[SourceVersion "1"]
[SourceVersionDate "2021.06.05"]
[SourceQuality "1"]
[TimeControl "40/100:0"]
[WhiteClock "1:11:33"]
[BlackClock "1:26:27"]

1. d4 {[%emt 0:00:00]} Nf6 {[%emt 0:00:00]} 2. c4 {[%emt 0:00:00]} e6 {[%emt 0:
00:00]} 3. Nf3 {[%emt 0:00:00]} d5 {[%emt 0:00:00]} 4. g3 {[%emt 0:00:00]} Be7
{[%emt 0:00:00]} 5. Bg2 {[%emt 0:00:00]} O-O {[%emt 0:00:00]} 6. Nc3 {[%emt 0:
00:00]} dxc4 {[%emt 0:00:00]} 7. Ne5 {[%emt 0:00:00]} Qd6 {[%emt 0:00:00]} 8.
O-O {[%emt 0:00:00]} Qa6 {[%emt 0:00:00]} 9. a4 {[%emt 0:00:00]} Nc6 {[%emt 0:
00:00]} 10. Nb5 {[%emt 0:00:00]} Nxe5 {[%emt 0:00:00]} 11. dxe5 {[%emt 0:00:00]
} Rd8 {[%emt 0:00:00]} 12. exf6 {[%emt 0:00:00]} Rxd1 {[%emt 0:00:00]} 13. Rxd1
{[%emt 0:00:00]} Bd6 {[%emt 0:00:00]} 14. Bf4 {[%emt 0:00:00]} Qa5 {[%emt 0:00:
00]} 15. Bd2 {[%emt 0:00:00]} Qa6 {[%emt 0:00:00]} 16. Bc3 {[%emt 0:00:00]} Qb6
{[%emt 0:00:00]} 17. Bd4 {[%emt 0:00:00]} Qa5 {[%emt 0:00:00]} 18. Bc3 {
[%emt 0:00:00]} Qb6 {[%emt 0:00:00]} 19. Bd4 {[%emt 0:00:00]} Qa5 {[%emt 0:00:
00]} 20. Bc3 {[%emt 0:00:00]} Qb6 1/2-1/2

[Event "Gibraltar Masters 18th"]
[Site "Gibraltar"]
[Date "2020.01.28"]
[Round "8.2"]
[White "Esipenko, Andrey"]
[Black "Paravyan, David"]
[Result "1/2-1/2"]
[ECO "A17"]
[WhiteElo "2654"]
[BlackElo "2629"]
[PlyCount "60"]
[EventDate "2020.01.21"]
[EventType "swiss"]
[EventRounds "10"]
[EventCountry "GGB"]
[SourceTitle "BritBase"]
[Source "John Saunders"]
[SourceDate "2021.06.05"]
[SourceVersion "1"]
[SourceVersionDate "2021.06.05"]
[SourceQuality "1"]
[TimeControl "40/100:0"]
[WhiteClock "0:27:51"]
[BlackClock "0:36:03"]

1. Nf3 {[%emt 0:00:00]} Nf6 {[%emt 0:00:00]} 2. c4 {[%emt 0:00:00]} c5 {
[%emt 0:00:00]} 3. Nc3 {[%emt 0:00:00]} d5 {[%emt 0:00:00]} 4. cxd5 {[%emt 0:
00:00]} Nxd5 {[%emt 0:00:00]} 5. e3 {[%emt 0:00:00]} e6 {[%emt 0:00:00]} 6. Bc4
{[%emt 0:00:00]} Be7 {[%emt 0:00:00]} 7. O-O {[%emt 0:00:00]} O-O {[%emt 0:00:
00]} 8. Qe2 {[%emt 0:00:00]} a6 {[%emt 0:00:00]} 9. d4 {[%emt 0:00:00]} cxd4 {
[%emt 0:00:00]} 10. exd4 {[%emt 0:00:00]} Nc6 {[%emt 0:00:00]} 11. Rd1 {
[%emt 0:00:00]} b5 {[%emt 0:00:00]} 12. Nxd5 {[%emt 0:00:00]} exd5 {[%emt 0:00:
00]} 13. Bd3 {[%emt 0:00:00]} Bg4 {[%emt 0:00:00]} 14. Be3 {[%emt 0:00:00]} Nb4
{[%emt 0:00:00]} 15. h3 {[%emt 0:00:00]} Bxf3 {[%emt 0:00:00]} 16. Qxf3 {
[%emt 0:00:00]} Nxd3 17. Rxd3 {[%emt 0:00:00]} Rc8 {[%emt 0:00:00]} 18. Re1 {
[%emt 0:00:00]} Bb4 {[%emt 0:00:00]} 19. Re2 {[%emt 0:00:00]} Re8 {[%emt 0:00:
00]} 20. Bf4 {[%emt 0:00:00]} Qf6 {[%emt 0:00:00]} 21. Re5 {[%emt 0:00:00]} Bd6
{[%emt 0:00:00]} 22. Rxe8+ {[%emt 0:00:00]} Rxe8 {[%emt 0:00:00]} 23. Bxd6 {
[%emt 0:00:00]} Qxd6 {[%emt 0:00:00]} 24. Re3 {[%emt 0:00:00]} Rxe3 {[%emt 0:
00:00]} 25. Qxe3 {[%emt 0:00:00]} Kf8 {[%emt 0:00:00]} 26. Qc3 {[%emt 0:00:00]}
Ke7 {[%emt 0:00:00]} 27. Qc8 {[%emt 0:00:00]} Qb6 {[%emt 0:00:00]} 28. Qc3 {
[%emt 0:00:00]} Qd6 {[%emt 0:00:00]} 29. Qc8 {[%emt 0:00:00]} Qb6 {[%emt 0:00:
00]} 30. Qc3 {[%emt 0:00:00]} Qd6 {[%emt 0:00:00]} 1/2-1/2

[Event "Gibraltar Masters 18th"]
[Site "Gibraltar"]
[Date "2020.01.28"]
[Round "8.3"]
[White "Kobalia, Mikhail"]
[Black "Yuffa, Daniil"]
[Result "1/2-1/2"]
[ECO "B92"]
[WhiteElo "2609"]
[BlackElo "2566"]
[PlyCount "86"]
[EventDate "2020.01.21"]
[EventType "swiss"]
[EventRounds "10"]
[EventCountry "GGB"]
[SourceTitle "BritBase"]
[Source "John Saunders"]
[SourceDate "2021.06.05"]
[SourceVersion "1"]
[SourceVersionDate "2021.06.05"]
[SourceQuality "1"]
[TimeControl "40/100:0"]
[WhiteClock "0:04:24"]
[BlackClock "0:00:54"]

1. e4 {[%emt 0:00:00]} c5 {[%emt 0:00:00]} 2. Nf3 {[%emt 0:00:00]} d6 {[%emt 0:
00:00]} 3. d4 {[%emt 0:00:00]} cxd4 {[%emt 0:00:00]} 4. Nxd4 {[%emt 0:00:00]}
Nf6 {[%emt 0:00:00]} 5. Nc3 {[%emt 0:00:00]} a6 {[%emt 0:00:00]} 6. Be2 {
[%emt 0:00:00]} e5 {[%emt 0:00:00]} 7. Nf3 {[%emt 0:00:00]} Be7 {[%emt 0:00:00]
} 8. Bg5 {[%emt 0:00:00]} Be6 {[%emt 0:00:00]} 9. Bxf6 {[%emt 0:00:00]} Bxf6 {
[%emt 0:00:00]} 10. O-O {[%emt 0:00:00]} Be7 {[%emt 0:00:00]} 11. Nd5 {[%emt 0:
00:00]} Nd7 {[%emt 0:00:00]} 12. Bc4 {[%emt 0:00:00]} Rc8 {[%emt 0:00:00]} 13.
Qe2 {[%emt 0:00:00]} O-O {[%emt 0:00:00]} 14. Rfd1 {[%emt 0:00:00]} Nb6 {
[%emt 0:00:00]} 15. Bb3 {[%emt 0:00:00]} Nxd5 {[%emt 0:00:00]} 16. Bxd5 {
[%emt 0:00:00]} Qb6 {[%emt 0:00:00]} 17. Bb3 {[%emt 0:00:00]} Rc5 {[%emt 0:00:
00]} 18. Ne1 {[%emt 0:00:00]} Bxb3 {[%emt 0:00:00]} 19. axb3 {[%emt 0:00:00]}
f5 {[%emt 0:00:00]} 20. Nd3 {[%emt 0:00:00]} Rcc8 {[%emt 0:00:00]} 21. Ra4 {
[%emt 0:00:00]} a5 {[%emt 0:00:00]} 22. exf5 {[%emt 0:00:00]} Rxf5 {[%emt 0:00:
00]} 23. Qe4 {[%emt 0:00:00]} Rcf8 {[%emt 0:00:00]} 24. Rd2 {[%emt 0:00:00]}
Bd8 {[%emt 0:00:00]} 25. Qd5+ {[%emt 0:00:00]} Kh8 {[%emt 0:00:00]} 26. h3 {
[%emt 0:00:00]} h6 {[%emt 0:00:00]} 27. b4 {[%emt 0:00:00]} axb4 {[%emt 0:00:
00]} 28. Rxb4 {[%emt 0:00:00]} Qa5 {[%emt 0:00:00]} 29. Qxb7 {[%emt 0:00:00]}
d5 {[%emt 0:00:00]} 30. g4 {[%emt 0:00:00]} R5f7 {[%emt 0:00:00]} 31. Qb5 {
[%emt 0:00:00]} Bc7 {[%emt 0:00:00]} 32. Kg2 {[%emt 0:00:00]} Qa8 {[%emt 0:00:
00]} 33. Nc5 {[%emt 0:00:00]} Bd6 {[%emt 0:00:00]} 34. Ra4 {[%emt 0:00:00]} Qc8
{[%emt 0:00:00]} 35. b4 {[%emt 0:00:00]} e4 {[%emt 0:00:00]} 36. Ra6 {[%emt 0:
00:00]} Bxc5 {[%emt 0:00:00]} 37. bxc5 {[%emt 0:00:00]} d4 {[%emt 0:00:37]} 38.
Qc6 {[%emt 0:00:00]} Rc7 {[%emt 0:00:00]} 39. Qe6 {[%emt 0:00:00]} e3 {[%emt 0:
00:05]} 40. Qxc8 {[%emt 0:00:00]} Rcxc8 {[%emt 0:00:00]} 41. fxe3 {[%emt 0:00:
00]} dxe3 {[%emt 0:00:59]} 42. Re2 {[%emt 0:00:00]} Rxc5 {[%emt 0:00:00]} 43.
Ra3 {[%emt 0:00:00]} Rfc8 {[%emt 0:00:45]} 1/2-1/2

[Event "Gibraltar Masters 18th"]
[Site "Gibraltar"]
[Date "2020.01.28"]
[Round "8.5"]
[White "Basso, Pier Luigi"]
[Black "Vachier-Lagrave, Maxime"]
[Result "1/2-1/2"]
[ECO "D92"]
[WhiteElo "2600"]
[BlackElo "2770"]
[PlyCount "62"]
[EventDate "2020.01.21"]
[EventType "swiss"]
[EventRounds "10"]
[EventCountry "GGB"]
[SourceTitle "BritBase"]
[Source "John Saunders"]
[SourceDate "2021.06.05"]
[SourceVersion "1"]
[SourceVersionDate "2021.06.05"]
[SourceQuality "1"]
[TimeControl "40/100:0"]
[WhiteClock "0:47:44"]
[BlackClock "0:58:53"]

1. d4 {[%emt 0:00:00]} Nf6 {[%emt 0:00:00]} 2. c4 {[%emt 0:00:00]} g6 {[%emt 0:
00:00]} 3. Nc3 {[%emt 0:00:00]} d5 {[%emt 0:00:00]} 4. Nf3 {[%emt 0:00:00]} Bg7
{[%emt 0:00:00]} 5. Bf4 {[%emt 0:00:00]} O-O {[%emt 0:00:00]} 6. Rc1 {[%emt 0:
00:00]} Be6 {[%emt 0:00:00]} 7. e3 {[%emt 0:00:00]} dxc4 {[%emt 0:00:00]} 8.
Ng5 {[%emt 0:00:00]} Bd5 {[%emt 0:00:00]} 9. e4 {[%emt 0:00:00]} h6 {[%emt 0:
00:00]} 10. exd5 {[%emt 0:00:00]} hxg5 {[%emt 0:00:00]} 11. Bxg5 {[%emt 0:00:
00]} Nxd5 {[%emt 0:00:00]} 12. Bxc4 {[%emt 0:00:00]} Nb6 {[%emt 0:00:00]} 13.
Bb3 {[%emt 0:00:00]} Nc6 {[%emt 0:00:00]} 14. d5 {[%emt 0:00:00]} Nd4 {[%emt 0:
00:00]} 15. O-O {[%emt 0:00:00]} Qd7 {[%emt 0:00:00]} 16. h4 {[%emt 0:00:00]}
Rfe8 {[%emt 0:00:00]} 17. a4 {[%emt 0:00:00]} Nxb3 {[%emt 0:00:00]} 18. Qxb3 {
[%emt 0:00:00]} Rad8 {[%emt 0:00:00]} 19. Rfd1 {[%emt 0:00:00]} Bxc3 {[%emt 0:
00:00]} 20. Rxc3 {[%emt 0:00:00]} Qxa4 {[%emt 0:00:00]} 21. Qxa4 {[%emt 0:00:
00]} Nxa4 {[%emt 0:00:00]} 22. Rxc7 {[%emt 0:00:00]} f6 {[%emt 0:00:00]} 23.
Bc1 {[%emt 0:00:00]} Nb6 {[%emt 0:00:00]} 24. Rxb7 {[%emt 0:00:00]} Rxd5 {
[%emt 0:00:00]} 25. Rxd5 {[%emt 0:00:00]} Nxd5 {[%emt 0:00:00]} 26. Rxa7 {
[%emt 0:00:00]} Rc8 {[%emt 0:00:00]} 27. Be3 {[%emt 0:00:00]} Kf7 {[%emt 0:00:
00]} 28. Ra1 {[%emt 0:00:00]} Nxe3 {[%emt 0:00:00]} 29. fxe3 {[%emt 0:00:00]}
Rb8 {[%emt 0:00:00]} 30. Ra2 {[%emt 0:00:00]} Rb4 {[%emt 0:00:00]} 31. g3 {
[%emt 0:00:00]} f5 {[%emt 0:00:00]} 1/2-1/2

[Event "Gibraltar Masters 18th"]
[Site "Gibraltar"]
[Date "2020.01.28"]
[Round "8.6"]
[White "Antipov, Mikhail Al."]
[Black "Topalov, Veselin"]
[Result "1/2-1/2"]
[ECO "B55"]
[WhiteElo "2562"]
[BlackElo "2738"]
[PlyCount "94"]
[EventDate "2020.01.21"]
[EventType "swiss"]
[EventRounds "10"]
[EventCountry "GGB"]
[SourceTitle "BritBase"]
[Source "John Saunders"]
[SourceDate "2021.06.05"]
[SourceVersion "1"]
[SourceVersionDate "2021.06.05"]
[SourceQuality "1"]
[TimeControl "40/100:0"]
[WhiteClock "0:13:02"]
[BlackClock "0:37:16"]

1. e4 {[%emt 0:00:00]} c5 {[%emt 0:00:00]} 2. Nf3 {[%emt 0:00:00]} d6 {[%emt 0:
00:00]} 3. d4 {[%emt 0:00:00]} cxd4 {[%emt 0:00:00]} 4. Nxd4 {[%emt 0:00:00]}
Nf6 {[%emt 0:00:00]} 5. f3 {[%emt 0:00:00]} Nc6 {[%emt 0:00:00]} 6. c4 {
[%emt 0:00:00]} e6 {[%emt 0:00:00]} 7. Nc3 {[%emt 0:00:00]} Be7 {[%emt 0:00:00]
} 8. Be3 {[%emt 0:00:00]} O-O {[%emt 0:00:00]} 9. Qd2 {[%emt 0:00:00]} d5 {
[%emt 0:00:00]} 10. exd5 {[%emt 0:00:00]} exd5 {[%emt 0:00:00]} 11. O-O-O {
[%emt 0:00:00]} Ne5 {[%emt 0:00:00]} 12. cxd5 {[%emt 0:00:00]} Nxd5 {[%emt 0:
00:00]} 13. Ndb5 {[%emt 0:00:00]} Nxe3 {[%emt 0:00:00]} 14. Qxe3 {[%emt 0:00:
00]} Nd7 {[%emt 0:00:00]} 15. Nd5 {[%emt 0:00:00]} Bc5 {[%emt 0:00:00]} 16. Qf4
{[%emt 0:00:00]} Nb6 {[%emt 0:00:00]} 17. Ndc7 {[%emt 0:00:00]} Qe7 {[%emt 0:
00:00]} 18. Kb1 {[%emt 0:00:00]} Be3 {[%emt 0:00:00]} 19. Qd6 {[%emt 0:00:00]}
Qxd6 {[%emt 0:00:00]} 20. Nxd6 {[%emt 0:00:00]} Rb8 {[%emt 0:00:00]} 21. Bd3 {
[%emt 0:00:00]} Bf4 {[%emt 0:00:00]} 22. Be4 {[%emt 0:00:00]} Rd8 {[%emt 0:00:
00]} 23. Ncb5 {[%emt 0:00:00]} a6 {[%emt 0:00:00]} 24. g3 {[%emt 0:00:00]} Bg5
{[%emt 0:00:00]} 25. Nxc8 {[%emt 0:00:00]} Rdxc8 {[%emt 0:00:00]} 26. Nd6 {
[%emt 0:00:00]} Rc7 {[%emt 0:00:00]} 27. Rhe1 {[%emt 0:00:00]} g6 {[%emt 0:00:
00]} 28. Bc2 {[%emt 0:00:00]} Kf8 {[%emt 0:00:00]} 29. Bb3 {[%emt 0:00:00]} Rd8
{[%emt 0:00:00]} 30. f4 {[%emt 0:00:00]} Bf6 {[%emt 0:00:00]} 31. Ne4 {[%emt 0:
00:13]} Rxd1+ {[%emt 0:00:00]} 32. Rxd1 {[%emt 0:00:00]} Be7 {[%emt 0:00:00]}
33. Ng5 {[%emt 0:00:51]} Bxg5 {[%emt 0:00:00]} 34. fxg5 {[%emt 0:00:00]} Nc4 {
[%emt 0:00:00]} 35. Rd4 {[%emt 0:00:00]} Ne5 {[%emt 0:00:00]} 36. h4 {[%emt 0:
00:00]} Nc6 {[%emt 0:00:00]} 37. Rf4 {[%emt 0:00:00]} Ne5 {[%emt 0:00:00]} 38.
a3 {[%emt 0:00:00]} Kg7 {[%emt 0:00:00]} 39. Bd5 {[%emt 0:00:03]} Rd7 {[%emt 0:
00:00]} 40. Be4 {[%emt 0:00:00]} b5 {[%emt 0:00:00]} 41. Kc2 {[%emt 0:00:00]}
Rc7+ {[%emt 0:00:00]} 42. Kb3 {[%emt 0:00:00]} a5 {[%emt 0:00:00]} 43. Ka2 {
[%emt 0:00:00]} Rd7 {[%emt 0:00:00]} 44. Bg2 {[%emt 0:00:00]} Rd2 {[%emt 0:00:
00]} 45. Bf1 {[%emt 0:00:00]} Nd3 {[%emt 0:00:00]} 46. Bxd3 {[%emt 0:00:00]}
Rxd3 {[%emt 0:00:00]} 47. Re4 {[%emt 0:00:00]} a4 {[%emt 0:00:00]} 1/2-1/2